[Event "Titled Tuesday Blitz April 26 Late 2022"]
[White "Richter, Nils"]
[Black "Alekseenko, Kirill"]
[WhiteFideId "12990809"]
[BlackFideId "4135539"]
[WhiteElo "2243"]
[BlackElo "2682"]
[Result "0-1"]
[Round "04"]
[TimeControl "180+1"]
[Date "2022.04.26"]
[WhiteClock "0:00:05"]
[BlackClock "0:01:05"]

1. d4 {[%clk 0:02:59]}  d5 {[%clk 0:03:00]} 2. c4 {[%clk 0:02:57]}  dxc4 {[%clk 0:03:01]} 3. e4 {[%clk 0:02:55]}  Nf6 {[%clk 0:03:01]} 4. e5 {[%clk 0:02:55]}  Nd5 {[%clk 0:03:01]} 5. Bxc4 {[%clk 0:02:55]}  Nb6 {[%clk 0:03:02]} 6. Bb3 {[%clk 0:02:54]}  Nc6 {[%clk 0:03:03]} 7. Ne2 {[%clk 0:02:52]}  Bf5 {[%clk 0:03:03]} 8. Nbc3 {[%clk 0:02:51]}  e6 {[%clk 0:03:03]} 9. O-O {[%clk 0:02:50]}  Qd7 {[%clk 0:03:04]} 10. Ng3 {[%clk 0:02:50]}  Bg6 {[%clk 0:03:04]} 11. Be3 {[%clk 0:02:47]}  O-O-O {[%clk 0:03:04]} 12. a4 {[%clk 0:02:38]}  Nxd4 {[%clk 0:03:03]} 13. a5 {[%clk 0:02:35]}  Na8 {[%clk 0:03:00]} 14. a6 {[%clk 0:02:31]}  bxa6 {[%clk 0:02:29]} 15. Bc4 {[%clk 0:02:27]}  Nb6 {[%clk 0:02:27]} 16. Bxa6+ {[%clk 0:02:27]}  Kb8 {[%clk 0:02:27]} 17. Bxd4 {[%clk 0:02:22]}  Qxd4 {[%clk 0:02:27]} 18. Qf3 {[%clk 0:02:23]}  Nd5 {[%clk 0:02:28]} 19. Ra4 {[%clk 0:02:10]}  Qb6 {[%clk 0:02:27]} 20. h4 {[%clk 0:01:44]}  h5 {[%clk 0:02:25]} 21. Rfa1 {[%clk 0:01:33]}  Bb4 {[%clk 0:02:21]} 22. Bc4 {[%clk 0:01:18]}  a5 {[%clk 0:02:21]} 23. Bxd5 {[%clk 0:01:09]}  exd5 {[%clk 0:02:21]} 24. Nxd5 {[%clk 0:01:10]}  Qb7 {[%clk 0:02:17]} 25. Nxb4 {[%clk 0:01:08]}  Qxf3 {[%clk 0:02:17]} 26. gxf3 {[%clk 0:01:08]}  axb4 {[%clk 0:02:18]} 27. Rxb4+ {[%clk 0:01:07]}  Kc8 {[%clk 0:02:19]} 28. f4 {[%clk 0:00:59]}  Kd7 {[%clk 0:02:05]} 29. f5 {[%clk 0:00:59]}  Bh7 {[%clk 0:02:06]} 30. Ra7 {[%clk 0:00:56]}  Rhe8 {[%clk 0:02:01]} 31. Rd4+ {[%clk 0:00:54]}  Kc6 {[%clk 0:02:01]} 32. Rc4+ {[%clk 0:00:53]}  Kd5 {[%clk 0:01:55]} 33. Rcxc7 {[%clk 0:00:49]}  Kxe5 {[%clk 0:01:55]} 34. Rxf7 {[%clk 0:00:47]}  Kf4 {[%clk 0:01:50]} 35. Kg2 {[%clk 0:00:45]}  Bg8 {[%clk 0:01:50]} 36. Nxh5+ {[%clk 0:00:37]}  Kg4 {[%clk 0:01:45]} 37. Nxg7 {[%clk 0:00:32]}  Bxf7 {[%clk 0:01:43]} 38. Rxf7 {[%clk 0:00:27]}  Re2 {[%clk 0:01:37]} 39. Ne6 {[%clk 0:00:18]}  Rdd2 {[%clk 0:01:33]} 40. Kf1 {[%clk 0:00:07]}  Rxf2+ {[%clk 0:01:33]} 41. Ke1 {[%clk 0:00:08]}  Rde2+ {[%clk 0:01:27]} 42. Kd1 {[%clk 0:00:08]}  Rxb2 {[%clk 0:01:28]} 43. Kc1 {[%clk 0:00:07]}  Rfc2+ {[%clk 0:01:28]} 44. Kd1 {[%clk 0:00:08]}  Rh2 {[%clk 0:01:29]} 45. Kc1 {[%clk 0:00:08]}  Rbc2+ {[%clk 0:01:22]} 46. Kb1 {[%clk 0:00:07]}  Rcd2 {[%clk 0:01:18]} 47. Rc7 {[%clk 0:00:06]}  Kxf5 {[%clk 0:01:15]} 48. Ng7+ {[%clk 0:00:03]}  Kg6 {[%clk 0:01:14]} 49. Ne6 {[%clk 0:00:03]}  Rb2+ {[%clk 0:01:05]} 50. Ka1 {[%clk 0:00:03]}  Rbf2 {[%clk 0:01:06]} 51. Kb1 {[%clk 0:00:02]}  Kf5 {[%clk 0:01:06]} 52. Nd4+ {[%clk 0:00:02]}  Ke4 {[%clk 0:01:06]} 53. Nb3 {[%clk 0:00:03]}  Rb2+ {[%clk 0:01:05]} 54. Ka1 {[%clk 0:00:04]}  Rxb3 {[%clk 0:01:05]} 55. Rc4+ {[%clk 0:00:04]}  Kd3 {[%clk 0:01:05]} 56. Rd4+ {[%clk 0:00:05]}  Kxd4 {[%clk 0:01:05]} 0-1


[Site "https://www.chess.com"]

[Event "Titled Tuesday Blitz April 26 Late 2022"]
[White "Rosen, Eric"]
[Black "Stanisz, Patryk"]
[WhiteFideId "2032562"]
[BlackFideId "1123106"]
[WhiteElo "2362"]
[BlackElo "1833"]
[Result "1-0"]
[Round "04"]
[TimeControl "180+1"]
[Date "2022.04.26"]
[WhiteClock "0:00:50"]
[BlackClock "0:00:02"]

1. d4 {[%clk 0:03:00]}  d5 {[%clk 0:02:59]} 2. Bf4 {[%clk 0:03:01]}  Nf6 {[%clk 0:02:59]} 3. e3 {[%clk 0:03:01]}  c5 {[%clk 0:02:59]} 4. Nf3 {[%clk 0:03:01]}  Nc6 {[%clk 0:02:59]} 5. Nbd2 {[%clk 0:03:02]}  e6 {[%clk 0:03:00]} 6. c3 {[%clk 0:03:01]}  cxd4 {[%clk 0:02:59]} 7. exd4 {[%clk 0:03:02]}  Nh5 {[%clk 0:02:57]} 8. Be3 {[%clk 0:03:02]}  Bd6 {[%clk 0:02:56]} 9. Ne5 {[%clk 0:03:02]}  g6 {[%clk 0:02:56]} 10. g4 {[%clk 0:03:02]}  Ng7 {[%clk 0:02:56]} 11. h4 {[%clk 0:03:03]}  h5 {[%clk 0:02:57]} 12. Bg5 {[%clk 0:02:58]}  Be7 {[%clk 0:02:39]} 13. Bb5 {[%clk 0:02:44]}  Bd7 {[%clk 0:02:24]} 14. Bxc6 {[%clk 0:02:44]}  Bxc6 {[%clk 0:02:24]} 15. Qf3 {[%clk 0:02:44]}  O-O {[%clk 0:02:05]} 16. Bh6 {[%clk 0:02:32]}  Bf6 {[%clk 0:00:51]} 17. gxh5 {[%clk 0:02:21]}  Bxe5 {[%clk 0:00:40]} 18. dxe5 {[%clk 0:02:18]}  d4 {[%clk 0:00:39]} 19. Ne4 {[%clk 0:02:14]}  Bxe4 {[%clk 0:00:16]} 20. Qxe4 {[%clk 0:02:15]}  dxc3 {[%clk 0:00:14]} 21. bxc3 {[%clk 0:01:53]}  Rc8 {[%clk 0:00:13]} 22. Rh3 {[%clk 0:01:35]}  Nxh5 {[%clk 0:00:08]} 23. Rd1 {[%clk 0:01:25]}  Qe7 {[%clk 0:00:06]} 24. Bxf8 {[%clk 0:01:18]}  Kxf8 {[%clk 0:00:07]} 25. Rhd3 {[%clk 0:01:18]}  Rc7 {[%clk 0:00:04]} 26. Rd8+ {[%clk 0:01:09]}  Kg7 {[%clk 0:00:04]} 27. Rb8 {[%clk 0:01:09]}  Qa3 {[%clk 0:00:04]} 28. Qb4 {[%clk 0:00:50]}  Qxb4 {[%clk 0:00:03]} 29. cxb4 {[%clk 0:00:51]}  b6 {[%clk 0:00:04]} 30. Rdd8 {[%clk 0:00:51]}  Kh6 {[%clk 0:00:01]} 31. Rh8+ {[%clk 0:00:49]}  Kg7 {[%clk 0:00:02]} 32. Rbg8# {[%clk 0:00:50]} 1-0


[Site "https://www.chess.com"]

[Event "Titled Tuesday Blitz April 26 Late 2022"]
[White "Rozman, Levy"]
[Black "Golubev, Mikhail"]
[WhiteFideId "2039877"]
[BlackFideId "14100983"]
[WhiteElo "2726"]
[BlackElo "2492"]
[Result "1-0"]
[Round "04"]
[TimeControl "180+1"]
[Date "2022.04.26"]
[WhiteClock "0:00:27"]
[BlackClock "0:00:12"]

1. d4 {[%clk 0:03:00]}  Nf6 {[%clk 0:02:58]} 2. Bg5 {[%clk 0:03:00]}  Ne4 {[%clk 0:02:54]} 3. h4 {[%clk 0:03:00]}  c6 {[%clk 0:02:50]} 4. Nd2 {[%clk 0:02:58]}  Qa5 {[%clk 0:02:46]} 5. Nf3 {[%clk 0:02:53]}  d6 {[%clk 0:02:43]} 6. c3 {[%clk 0:02:49]}  Nxg5 {[%clk 0:02:40]} 7. hxg5 {[%clk 0:02:49]}  g6 {[%clk 0:02:38]} 8. e4 {[%clk 0:02:44]}  Bg7 {[%clk 0:02:38]} 9. Bc4 {[%clk 0:02:33]}  Bg4 {[%clk 0:02:35]} 10. Rh4 {[%clk 0:02:32]}  Bxf3 {[%clk 0:02:30]} 11. Qxf3 {[%clk 0:02:30]}  e6 {[%clk 0:02:29]} 12. Qe3 {[%clk 0:02:17]}  Nd7 {[%clk 0:02:23]} 13. f4 {[%clk 0:02:13]}  O-O-O {[%clk 0:02:06]} 14. O-O-O {[%clk 0:01:58]}  d5 {[%clk 0:02:05]} 15. Bb3 {[%clk 0:01:44]}  c5 {[%clk 0:02:01]} 16. exd5 {[%clk 0:01:41]}  exd5 {[%clk 0:01:38]} 17. Bxd5 {[%clk 0:01:31]}  cxd4 {[%clk 0:01:33]} 18. Qf3 {[%clk 0:01:30]}  Nc5 {[%clk 0:01:24]} 19. Nc4 {[%clk 0:01:14]}  Qc7 {[%clk 0:01:18]} 20. cxd4 {[%clk 0:01:09]}  Ne6 {[%clk 0:01:10]} 21. Bxe6+ {[%clk 0:01:04]}  fxe6 {[%clk 0:01:11]} 22. Kb1 {[%clk 0:01:04]}  Rxd4 {[%clk 0:01:04]} 23. Rxd4 {[%clk 0:00:59]}  Bxd4 {[%clk 0:01:05]} 24. Qe2 {[%clk 0:00:56]}  Rd8 {[%clk 0:00:58]} 25. Qxe6+ {[%clk 0:00:54]}  Kb8 {[%clk 0:00:58]} 26. a3 {[%clk 0:00:45]}  Rc8 {[%clk 0:00:52]} 27. Qd6 {[%clk 0:00:32]}  Qxd6 {[%clk 0:00:19]} 28. Nxd6 {[%clk 0:00:33]}  Rd8 {[%clk 0:00:19]} 29. Nf7 {[%clk 0:00:26]}  Rd7 {[%clk 0:00:17]} 30. Rxh7 {[%clk 0:00:26]}  Kc7 {[%clk 0:00:17]} 31. g4 {[%clk 0:00:26]}  Be3 {[%clk 0:00:16]} 32. f5 {[%clk 0:00:26]}  gxf5 {[%clk 0:00:12]} 33. gxf5 {[%clk 0:00:27]} 1-0


[Site "https://www.chess.com"]

[Event "Titled Tuesday Blitz April 26 Late 2022"]
[White "Sadovsky, Artem"]
[Black "Martinez Reyes, Pedro Ramon"]
[WhiteFideId "4155840"]
[BlackFideId "3901807"]
[WhiteElo "2314"]
[BlackElo "2410"]
[Result "1-0"]
[Round "04"]
[TimeControl "180+1"]
[Date "2022.04.26"]
[WhiteClock "0:00:07"]
[BlackClock "0:00:05"]

1. c4 {[%clk 0:03:00]}  Nf6 {[%clk 0:02:53]} 2. g3 {[%clk 0:03:00]}  d5 {[%clk 0:02:52]} 3. cxd5 {[%clk 0:02:59]}  Qxd5 {[%clk 0:02:52]} 4. Nf3 {[%clk 0:02:59]}  Nc6 {[%clk 0:02:45]} 5. Nc3 {[%clk 0:03:00]}  Qh5 {[%clk 0:02:45]} 6. Bg2 {[%clk 0:02:59]}  Bh3 {[%clk 0:02:39]} 7. Bxh3 {[%clk 0:02:46]}  Qxh3 {[%clk 0:02:40]} 8. Qa4 {[%clk 0:02:46]}  O-O-O {[%clk 0:02:36]} 9. Ng5 {[%clk 0:02:33]}  Qf5 {[%clk 0:02:26]} 10. Nxf7 {[%clk 0:02:29]}  Rd4 {[%clk 0:02:26]} 11. Qb5 {[%clk 0:02:20]}  e5 {[%clk 0:01:53]} 12. Nxh8 {[%clk 0:02:05]}  Bb4 {[%clk 0:01:41]} 13. e3 {[%clk 0:01:52]}  a6 {[%clk 0:01:39]} 14. Qe2 {[%clk 0:01:50]}  Rd7 {[%clk 0:01:29]} 15. f3 {[%clk 0:01:21]}  Bc5 {[%clk 0:01:21]} 16. a3 {[%clk 0:01:03]}  Re7 {[%clk 0:01:19]} 17. Ne4 {[%clk 0:00:52]}  Bb6 {[%clk 0:01:10]} 18. O-O {[%clk 0:00:48]}  Qd7 {[%clk 0:00:39]} 19. Nxf6 {[%clk 0:00:36]}  gxf6 {[%clk 0:00:40]} 20. Qc4 {[%clk 0:00:37]}  Qe8 {[%clk 0:00:38]} 21. b4 {[%clk 0:00:22]}  Qxh8 {[%clk 0:00:37]} 22. Bb2 {[%clk 0:00:23]}  h5 {[%clk 0:00:36]} 23. Rad1 {[%clk 0:00:22]}  h4 {[%clk 0:00:36]} 24. Qxh4 {[%clk 0:00:21]}  Qg7 {[%clk 0:00:34]} 25. Qg4+ {[%clk 0:00:21]}  Kd8 {[%clk 0:00:27]} 26. Qxg7 {[%clk 0:00:21]}  Rxg7 {[%clk 0:00:28]} 27. g4 {[%clk 0:00:22]}  Ne7 {[%clk 0:00:26]} 28. Kg2 {[%clk 0:00:21]}  Ng6 {[%clk 0:00:26]} 29. Kg3 {[%clk 0:00:20]}  c6 {[%clk 0:00:26]} 30. h4 {[%clk 0:00:21]}  Bc7 {[%clk 0:00:26]} 31. h5 {[%clk 0:00:20]}  Nh8 {[%clk 0:00:25]} 32. d4 {[%clk 0:00:18]}  Nf7 {[%clk 0:00:21]} 33. dxe5+ {[%clk 0:00:18]}  Ke7 {[%clk 0:00:22]} 34. f4 {[%clk 0:00:18]}  fxe5 {[%clk 0:00:22]} 35. Rfe1 {[%clk 0:00:17]}  Ke6 {[%clk 0:00:13]} 36. f5+ {[%clk 0:00:15]}  Kf6 {[%clk 0:00:13]} 37. e4 {[%clk 0:00:14]}  Nh6 {[%clk 0:00:11]} 38. Kf3 {[%clk 0:00:11]}  Rxg4 {[%clk 0:00:11]} 39. Rg1 {[%clk 0:00:11]}  Rf4+ {[%clk 0:00:12]} 40. Ke2 {[%clk 0:00:11]}  Rxe4+ {[%clk 0:00:12]} 41. Kd3 {[%clk 0:00:11]}  Rg4 {[%clk 0:00:06]} 42. Rxg4 {[%clk 0:00:11]}  Nxg4 {[%clk 0:00:07]} 43. Rf1 {[%clk 0:00:11]}  Bd6 {[%clk 0:00:05]} 44. Ke4 {[%clk 0:00:10]}  Nh6 {[%clk 0:00:04]} 45. Rg1 {[%clk 0:00:09]}  Kf7 {[%clk 0:00:03]} 46. Rg6 {[%clk 0:00:08]}  Ng8 {[%clk 0:00:03]} 47. Rxd6 {[%clk 0:00:08]}  Ne7 {[%clk 0:00:03]} 48. Bxe5 {[%clk 0:00:07]}  Ng8 {[%clk 0:00:04]} 49. Rd7+ {[%clk 0:00:07]}  Ke8 {[%clk 0:00:04]} 50. Rxb7 {[%clk 0:00:07]}  Ne7 {[%clk 0:00:04]} 51. h6 {[%clk 0:00:07]}  Nd5 {[%clk 0:00:05]} 1-0


[Site "https://www.chess.com"]

[Event "Titled Tuesday Blitz April 26 Late 2022"]
[White "Schekachikhin, Maksim"]
[Black "Quesada Perez, Yuniesky"]
[WhiteFideId "24177830"]
[BlackFideId "3504409"]
[WhiteElo "2230"]
[BlackElo "2622"]
[Result "1/2-1/2"]
[Round "04"]
[TimeControl "180+1"]
[Date "2022.04.26"]
[WhiteClock "0:00:06"]
[BlackClock "0:00:08"]

1. d4 {[%clk 0:02:56]}  d5 {[%clk 0:02:58]} 2. c4 {[%clk 0:02:56]}  c6 {[%clk 0:02:58]} 3. cxd5 {[%clk 0:02:54]}  cxd5 {[%clk 0:02:57]} 4. Nf3 {[%clk 0:02:54]}  Nc6 {[%clk 0:02:56]} 5. Nc3 {[%clk 0:02:54]}  Nf6 {[%clk 0:02:56]} 6. Bf4 {[%clk 0:02:53]}  a6 {[%clk 0:02:56]} 7. e3 {[%clk 0:02:53]}  Bg4 {[%clk 0:02:56]} 8. Be2 {[%clk 0:02:53]}  e6 {[%clk 0:02:56]} 9. O-O {[%clk 0:02:52]}  Be7 {[%clk 0:02:49]} 10. Rc1 {[%clk 0:02:52]}  Bxf3 {[%clk 0:02:46]} 11. Bxf3 {[%clk 0:02:52]}  O-O {[%clk 0:02:47]} 12. h3 {[%clk 0:02:52]}  Rc8 {[%clk 0:02:46]} 13. Be2 {[%clk 0:02:52]}  Bd6 {[%clk 0:02:46]} 14. Bxd6 {[%clk 0:02:29]}  Qxd6 {[%clk 0:02:47]} 15. Na4 {[%clk 0:02:29]}  Nd7 {[%clk 0:02:47]} 16. Nc5 {[%clk 0:02:28]}  Nxc5 {[%clk 0:02:47]} 17. dxc5 {[%clk 0:02:27]}  Qe5 {[%clk 0:02:43]} 18. Qd2 {[%clk 0:02:25]}  Rfd8 {[%clk 0:02:41]} 19. Bf3 {[%clk 0:02:21]}  d4 {[%clk 0:02:32]} 20. Bxc6 {[%clk 0:02:21]}  Rxc6 {[%clk 0:02:31]} 21. b4 {[%clk 0:02:19]}  Rd5 {[%clk 0:02:18]} 22. Rfd1 {[%clk 0:02:07]}  dxe3 {[%clk 0:01:46]} 23. Qxe3 {[%clk 0:02:08]}  Qxe3 {[%clk 0:01:31]} 24. fxe3 {[%clk 0:02:09]}  Kf8 {[%clk 0:01:30]} 25. Rxd5 {[%clk 0:01:58]}  exd5 {[%clk 0:01:31]} 26. Rd1 {[%clk 0:01:58]}  a5 {[%clk 0:01:31]} 27. a3 {[%clk 0:01:57]}  Re6 {[%clk 0:01:12]} 28. Kf2 {[%clk 0:01:53]}  axb4 {[%clk 0:01:08]} 29. axb4 {[%clk 0:01:54]}  Re4 {[%clk 0:01:08]} 30. Rd4 {[%clk 0:01:37]}  Re5 {[%clk 0:01:08]} 31. b5 {[%clk 0:01:29]}  Ke8 {[%clk 0:01:05]} 32. Ra4 {[%clk 0:01:27]}  Kd8 {[%clk 0:00:52]} 33. Ke2 {[%clk 0:01:22]}  Kc7 {[%clk 0:00:46]} 34. Kd3 {[%clk 0:01:22]}  Kb8 {[%clk 0:00:35]} 35. g4 {[%clk 0:01:12]}  f6 {[%clk 0:00:34]} 36. Rf4 {[%clk 0:01:11]}  Kc7 {[%clk 0:00:33]} 37. Rf5 {[%clk 0:01:06]}  Kd7 {[%clk 0:00:30]} 38. h4 {[%clk 0:00:23]}  Ke6 {[%clk 0:00:25]} 39. Rf4 {[%clk 0:00:21]}  Kd7 {[%clk 0:00:25]} 40. Kd4 {[%clk 0:00:21]}  Ke6 {[%clk 0:00:16]} 41. Kd3 {[%clk 0:00:10]}  Kd7 {[%clk 0:00:13]} 42. Kd4 {[%clk 0:00:10]}  Ke6 {[%clk 0:00:13]} 43. h5 {[%clk 0:00:10]}  g6 {[%clk 0:00:13]} 44. hxg6 {[%clk 0:00:09]}  hxg6 {[%clk 0:00:13]} 45. Kd3 {[%clk 0:00:10]}  g5 {[%clk 0:00:12]} 46. Rf1 {[%clk 0:00:08]}  Re4 {[%clk 0:00:12]} 47. Rh1 {[%clk 0:00:08]}  Rb4 {[%clk 0:00:09]} 48. b6 {[%clk 0:00:07]}  Rc4 {[%clk 0:00:09]} 49. Rh7 {[%clk 0:00:07]}  Rxc5 {[%clk 0:00:09]} 50. Rxb7 {[%clk 0:00:08]}  Rb5 {[%clk 0:00:09]} 51. Rb8 {[%clk 0:00:08]}  Kd7 {[%clk 0:00:08]} 52. b7 {[%clk 0:00:07]}  Kc7 {[%clk 0:00:07]} 53. Rf8 {[%clk 0:00:07]}  Kxb7 {[%clk 0:00:06]} 54. Rxf6 {[%clk 0:00:07]}  Rb4 {[%clk 0:00:07]} 55. Rf5 {[%clk 0:00:07]}  Rxg4 {[%clk 0:00:07]} 56. Rxd5 {[%clk 0:00:05]}  Kc6 {[%clk 0:00:07]} 57. Rf5 {[%clk 0:00:05]}  Rg1 {[%clk 0:00:08]} 58. Ke2 {[%clk 0:00:05]}  Kd6 {[%clk 0:00:08]} 59. Kf2 {[%clk 0:00:05]}  Rg4 {[%clk 0:00:08]} 60. Kf3 {[%clk 0:00:05]}  Rg1 {[%clk 0:00:08]} 61. Kf2 {[%clk 0:00:05]}  Rg4 {[%clk 0:00:08]} 62. Kf3 {[%clk 0:00:05]}  Rg1 {[%clk 0:00:08]} 63. Kf2 {[%clk 0:00:06]} 1/2-1/2


[Site "https://www.chess.com"]

[Event "Titled Tuesday Blitz April 26 Late 2022"]
[White "Sevian, Samuel"]
[Black "Chigaev, Maksim"]
[WhiteFideId "2040506"]
[BlackFideId "4108116"]
[WhiteElo "2698"]
[BlackElo "2478"]
[Result "1/2-1/2"]
[Round "04"]
[TimeControl "180+1"]
[Date "2022.04.26"]
[WhiteClock "0:00:03"]
[BlackClock "0:00:03"]

1. b3 {[%clk 0:03:00]}  Nf6 {[%clk 0:02:56]} 2. Bb2 {[%clk 0:03:01]}  g6 {[%clk 0:02:57]} 3. Bxf6 {[%clk 0:02:53]}  exf6 {[%clk 0:02:58]} 4. c4 {[%clk 0:02:53]}  d5 {[%clk 0:02:57]} 5. cxd5 {[%clk 0:02:53]}  Qxd5 {[%clk 0:02:57]} 6. Nc3 {[%clk 0:02:53]}  Qa5 {[%clk 0:02:57]} 7. e3 {[%clk 0:02:48]}  a6 {[%clk 0:02:40]} 8. a3 {[%clk 0:02:45]}  c5 {[%clk 0:02:27]} 9. Nf3 {[%clk 0:02:43]}  Bg7 {[%clk 0:02:23]} 10. h4 {[%clk 0:02:10]}  h5 {[%clk 0:02:22]} 11. Bc4 {[%clk 0:02:08]}  Nc6 {[%clk 0:02:17]} 12. Qc2 {[%clk 0:02:00]}  Bf5 {[%clk 0:02:03]} 13. d3 {[%clk 0:01:19]}  O-O {[%clk 0:01:57]} 14. O-O {[%clk 0:01:19]}  Bg4 {[%clk 0:01:49]} 15. Bd5 {[%clk 0:01:18]}  Rac8 {[%clk 0:01:41]} 16. Ne4 {[%clk 0:01:05]}  Bxf3 {[%clk 0:01:26]} 17. gxf3 {[%clk 0:01:03]}  f5 {[%clk 0:01:11]} 18. Nd6 {[%clk 0:01:03]}  Qd8 {[%clk 0:01:03]} 19. Qxc5 {[%clk 0:01:00]}  b6 {[%clk 0:00:42]} 20. Nxf7 {[%clk 0:00:54]}  Rxf7 {[%clk 0:00:18]} 21. Bxf7+ {[%clk 0:00:55]}  Kxf7 {[%clk 0:00:18]} 22. Qc4+ {[%clk 0:00:55]}  Kf8 {[%clk 0:00:18]} 23. d4 {[%clk 0:00:56]}  b5 {[%clk 0:00:12]} 24. Qe6 {[%clk 0:00:54]}  Qe8 {[%clk 0:00:07]} 25. Qxe8+ {[%clk 0:00:49]}  Kxe8 {[%clk 0:00:07]} 26. Rac1 {[%clk 0:00:49]}  Kd7 {[%clk 0:00:07]} 27. Kh2 {[%clk 0:00:48]}  Bf8 {[%clk 0:00:07]} 28. Rg1 {[%clk 0:00:46]}  Bxa3 {[%clk 0:00:06]} 29. Ra1 {[%clk 0:00:45]}  Bd6+ {[%clk 0:00:06]} 30. Kh3 {[%clk 0:00:44]}  a5 {[%clk 0:00:03]} 31. Rxg6 {[%clk 0:00:44]}  Bb4 {[%clk 0:00:04]} 32. Rc1 {[%clk 0:00:38]}  Ne7 {[%clk 0:00:04]} 33. Rxc8 {[%clk 0:00:38]}  Nxc8 {[%clk 0:00:03]} 34. e4 {[%clk 0:00:37]}  fxe4 {[%clk 0:00:03]} 35. fxe4 {[%clk 0:00:38]}  Kc7 {[%clk 0:00:03]} 36. Rg1 {[%clk 0:00:34]}  Nb6 {[%clk 0:00:03]} 37. Rc1+ {[%clk 0:00:30]}  Kd7 {[%clk 0:00:03]} 38. Kg3 {[%clk 0:00:28]}  a4 {[%clk 0:00:03]} 39. bxa4 {[%clk 0:00:28]}  bxa4 {[%clk 0:00:03]} 40. Ra1 {[%clk 0:00:28]}  a3 {[%clk 0:00:03]} 41. Kf4 {[%clk 0:00:28]}  Nc4 {[%clk 0:00:03]} 42. Kg5 {[%clk 0:00:25]}  Bc3 {[%clk 0:00:03]} 43. Ra2 {[%clk 0:00:25]}  Bxd4 {[%clk 0:00:03]} 44. Kxh5 {[%clk 0:00:23]}  Bb2 {[%clk 0:00:03]} 45. f4 {[%clk 0:00:23]}  Nd2 {[%clk 0:00:03]} 46. e5 {[%clk 0:00:22]}  Nb3 {[%clk 0:00:03]} 47. Kg6 {[%clk 0:00:22]}  Nc1 {[%clk 0:00:04]} 48. h5 {[%clk 0:00:16]}  Nxa2 {[%clk 0:00:04]} 49. h6 {[%clk 0:00:17]}  Nb4 {[%clk 0:00:05]} 50. h7 {[%clk 0:00:17]}  a2 {[%clk 0:00:05]} 51. h8=Q {[%clk 0:00:17]}  a1=Q {[%clk 0:00:06]} 52. Qg7+ {[%clk 0:00:16]}  Kc6 {[%clk 0:00:06]} 53. Qf6+ {[%clk 0:00:16]}  Kb5 {[%clk 0:00:07]} 54. Qd6 {[%clk 0:00:15]}  Qg1+ {[%clk 0:00:07]} 55. Kf6 {[%clk 0:00:14]}  Kc4 {[%clk 0:00:06]} 56. Qe6+ {[%clk 0:00:12]}  Nd5+ {[%clk 0:00:06]} 57. Kf7 {[%clk 0:00:12]}  Qa7+ {[%clk 0:00:06]} 58. Kg8 {[%clk 0:00:10]}  Qg1+ {[%clk 0:00:06]} 59. Kf7 {[%clk 0:00:10]}  Qg3 {[%clk 0:00:04]} 60. Qc6+ {[%clk 0:00:08]}  Kd4 {[%clk 0:00:05]} 61. Qa4+ {[%clk 0:00:07]}  Kc5 {[%clk 0:00:05]} 62. Qa5+ {[%clk 0:00:06]}  Kc4 {[%clk 0:00:05]} 63. Qa4+ {[%clk 0:00:05]}  Nb4 {[%clk 0:00:06]} 64. e6 {[%clk 0:00:02]}  Qxf4+ {[%clk 0:00:06]} 65. Ke8 {[%clk 0:00:03]}  Qb8+ {[%clk 0:00:06]} 66. Kf7 {[%clk 0:00:03]}  Qf4+ {[%clk 0:00:06]} 67. Ke8 {[%clk 0:00:04]}  Qc7 {[%clk 0:00:04]} 68. Qd7 {[%clk 0:00:04]}  Qb8+ {[%clk 0:00:03]} 69. Kf7 {[%clk 0:00:04]}  Nd5 {[%clk 0:00:03]} 70. e7 {[%clk 0:00:04]}  Qf4+ {[%clk 0:00:03]} 71. Kg6 {[%clk 0:00:02]}  Nxe7+ {[%clk 0:00:03]} 72. Qxe7 {[%clk 0:00:02]}  Qg4+ {[%clk 0:00:03]} 73. Kf7 {[%clk 0:00:02]}  Qf5+ {[%clk 0:00:04]} 74. Ke8 {[%clk 0:00:03]}  Qb5+ {[%clk 0:00:03]} 75. Kf7 {[%clk 0:00:02]}  Qf5+ {[%clk 0:00:03]} 76. Ke8 {[%clk 0:00:02]}  Be5 {[%clk 0:00:03]} 77. Qf7+ {[%clk 0:00:02]}  Qxf7+ {[%clk 0:00:03]} 78. Kxf7 {[%clk 0:00:03]} 1/2-1/2


[Site "https://www.chess.com"]

[Event "Titled Tuesday Blitz April 26 Late 2022"]
[White "Shimanov, Aleksandr"]
[Black "Koellner, Ruben Gideon"]
[WhiteFideId "4198603"]
[BlackFideId "12993093"]
[WhiteElo "2636"]
[BlackElo "2614"]
[Result "1-0"]
[Round "04"]
[TimeControl "180+1"]
[Date "2022.04.26"]
[WhiteClock "0:01:04"]
[BlackClock "0:00:07"]

1. d4 {[%clk 0:03:00]}  d6 {[%clk 0:02:59]} 2. Nf3 {[%clk 0:02:58]}  Nf6 {[%clk 0:02:59]} 3. g3 {[%clk 0:02:56]}  g6 {[%clk 0:02:59]} 4. b3 {[%clk 0:02:55]}  Bg7 {[%clk 0:02:59]} 5. Bb2 {[%clk 0:02:55]}  O-O {[%clk 0:03:00]} 6. Bg2 {[%clk 0:02:55]}  c5 {[%clk 0:02:59]} 7. O-O {[%clk 0:02:54]}  Nc6 {[%clk 0:02:58]} 8. d5 {[%clk 0:02:54]}  Nb4 {[%clk 0:02:58]} 9. c4 {[%clk 0:02:54]}  Bf5 {[%clk 0:02:57]} 10. Nc3 {[%clk 0:02:53]}  Ne4 {[%clk 0:02:49]} 11. Qc1 {[%clk 0:02:46]}  Nxc3 {[%clk 0:02:28]} 12. Bxc3 {[%clk 0:02:47]}  Bxc3 {[%clk 0:02:26]} 13. Qxc3 {[%clk 0:02:48]}  Rb8 {[%clk 0:02:01]} 14. Nh4 {[%clk 0:02:37]}  Bd7 {[%clk 0:01:59]} 15. e4 {[%clk 0:02:37]}  e5 {[%clk 0:01:51]} 16. dxe6 {[%clk 0:02:19]}  fxe6 {[%clk 0:01:39]} 17. Rad1 {[%clk 0:02:04]}  Qe7 {[%clk 0:01:18]} 18. Qd2 {[%clk 0:01:59]}  Rbd8 {[%clk 0:01:10]} 19. Qxd6 {[%clk 0:01:39]}  Qxd6 {[%clk 0:01:11]} 20. Rxd6 {[%clk 0:01:40]}  Bc8 {[%clk 0:01:10]} 21. e5 {[%clk 0:01:29]}  Rxd6 {[%clk 0:00:53]} 22. exd6 {[%clk 0:01:30]}  Rd8 {[%clk 0:00:53]} 23. Rd1 {[%clk 0:01:27]}  Nxa2 {[%clk 0:00:24]} 24. Nf3 {[%clk 0:01:11]}  Nc3 {[%clk 0:00:23]} 25. Rd3 {[%clk 0:01:12]}  Ne4 {[%clk 0:00:12]} 26. d7 {[%clk 0:01:11]}  Rxd7 {[%clk 0:00:11]} 27. Rxd7 {[%clk 0:01:11]}  Bxd7 {[%clk 0:00:12]} 28. Ne5 {[%clk 0:01:12]}  Nf6 {[%clk 0:00:12]} 29. Bxb7 {[%clk 0:01:13]}  Kf8 {[%clk 0:00:11]} 30. Nd3 {[%clk 0:01:13]}  Ke7 {[%clk 0:00:07]} 31. Nxc5 {[%clk 0:01:13]}  Be8 {[%clk 0:00:08]} 32. Bf3 {[%clk 0:01:05]}  Kd6 {[%clk 0:00:07]} 33. b4 {[%clk 0:01:05]}  a6 {[%clk 0:00:07]} 34. Nxa6 {[%clk 0:01:04]} 1-0


[Site "https://www.chess.com"]